[Event "Titled Tuesday Blitz April 12 Late 2022"]
[White "Indjic, Aleksandar"]
[Black "Lin, Dachey"]
[WhiteFideId "911925"]
[BlackFideId "2029650"]
[WhiteElo "2616"]
[BlackElo "2313"]
[Result "1-0"]
[Round "03"]
[TimeControl "180+1"]
[Date "2022.04.12"]
[WhiteClock "0:01:23"]
[BlackClock "0:00:15"]

1. d4 {[%clk 0:02:52]}  g6 {[%clk 0:03:00]} 2. e4 {[%clk 0:02:51]}  Bg7 {[%clk 0:03:01]} 3. Nc3 {[%clk 0:02:51]}  d5 {[%clk 0:02:59]} 4. Nxd5 {[%clk 0:02:46]}  c6 {[%clk 0:02:58]} 5. Ne3 {[%clk 0:02:46]}  Qxd4 {[%clk 0:02:57]} 6. Qxd4 {[%clk 0:02:44]}  Bxd4 {[%clk 0:02:58]} 7. c3 {[%clk 0:02:44]}  Bg7 {[%clk 0:02:56]} 8. f4 {[%clk 0:02:43]}  Nf6 {[%clk 0:02:50]} 9. e5 {[%clk 0:02:43]}  Nd5 {[%clk 0:02:48]} 10. g3 {[%clk 0:02:38]}  Be6 {[%clk 0:02:42]} 11. Nf3 {[%clk 0:02:37]}  Nxe3 {[%clk 0:02:38]} 12. Bxe3 {[%clk 0:02:36]}  Bd5 {[%clk 0:02:38]} 13. Kf2 {[%clk 0:02:34]}  f6 {[%clk 0:02:34]} 14. exf6 {[%clk 0:02:33]}  exf6 {[%clk 0:02:34]} 15. Rg1 {[%clk 0:02:25]}  Nd7 {[%clk 0:02:30]} 16. f5 {[%clk 0:02:23]}  Ne5 {[%clk 0:02:01]} 17. Nxe5 {[%clk 0:02:21]}  fxe5 {[%clk 0:02:01]} 18. fxg6 {[%clk 0:02:21]}  hxg6 {[%clk 0:02:00]} 19. h4 {[%clk 0:02:20]}  O-O+ {[%clk 0:01:57]} 20. Ke1 {[%clk 0:02:18]}  Rf3 {[%clk 0:01:55]} 21. Bg5 {[%clk 0:02:17]}  e4 {[%clk 0:01:55]} 22. Be2 {[%clk 0:02:16]}  Rf7 {[%clk 0:01:00]} 23. Be3 {[%clk 0:02:12]}  b5 {[%clk 0:00:55]} 24. Kd2 {[%clk 0:02:10]}  Rd8 {[%clk 0:00:51]} 25. Kc2 {[%clk 0:02:10]}  Bc4 {[%clk 0:00:48]} 26. Rae1 {[%clk 0:02:00]}  Bd3+ {[%clk 0:00:47]} 27. Kc1 {[%clk 0:01:59]}  Bxe2 {[%clk 0:00:46]} 28. Rxe2 {[%clk 0:02:00]}  Rf3 {[%clk 0:00:47]} 29. Bf4 {[%clk 0:01:58]}  e3 {[%clk 0:00:44]} 30. Rge1 {[%clk 0:01:50]}  Rd3 {[%clk 0:00:36]} 31. Kc2 {[%clk 0:01:46]}  Rd5 {[%clk 0:00:33]} 32. Rxe3 {[%clk 0:01:46]}  Rxe3 {[%clk 0:00:32]} 33. Rxe3 {[%clk 0:01:45]}  Kf7 {[%clk 0:00:32]} 34. Re4 {[%clk 0:01:42]}  a5 {[%clk 0:00:32]} 35. b3 {[%clk 0:01:42]}  Rc5 {[%clk 0:00:30]} 36. c4 {[%clk 0:01:42]}  a4 {[%clk 0:00:23]} 37. bxa4 {[%clk 0:01:39]}  bxa4 {[%clk 0:00:23]} 38. g4 {[%clk 0:01:38]}  Ra5 {[%clk 0:00:23]} 39. Be3 {[%clk 0:01:31]}  Re5 {[%clk 0:00:18]} 40. Rxe5 {[%clk 0:01:30]}  Bxe5 {[%clk 0:00:19]} 41. Kd3 {[%clk 0:01:25]}  Ke6 {[%clk 0:00:19]} 42. Ke4 {[%clk 0:01:24]}  Bh8 {[%clk 0:00:15]} 43. Bd4 {[%clk 0:01:23]} 1-0


[Site "https://www.chess.com"]

[Event "Titled Tuesday Blitz April 12 Late 2022"]
[White "Isajevsky, Anton"]
[Black "Bryakin, Mikhail"]
[WhiteFideId "4142500"]
[BlackFideId "4165314"]
[WhiteElo "2532"]
[BlackElo "2831"]
[Result "0-1"]
[Round "03"]
[TimeControl "180+1"]
[Date "2022.04.13"]
[WhiteClock "0:00:01"]
[BlackClock "0:01:20"]

1. c4 {[%clk 0:03:00]}  g6 {[%clk 0:02:58]} 2. g3 {[%clk 0:03:00]}  Bg7 {[%clk 0:02:59]} 3. Bg2 {[%clk 0:03:00]}  Nf6 {[%clk 0:02:59]} 4. Nc3 {[%clk 0:03:00]}  O-O {[%clk 0:03:00]} 5. e3 {[%clk 0:03:00]}  c6 {[%clk 0:03:00]} 6. Nge2 {[%clk 0:02:59]}  d5 {[%clk 0:03:01]} 7. cxd5 {[%clk 0:03:00]}  Nxd5 {[%clk 0:03:01]} 8. d4 {[%clk 0:02:57]}  a5 {[%clk 0:02:56]} 9. O-O {[%clk 0:02:55]}  Na6 {[%clk 0:02:56]} 10. Nxd5 {[%clk 0:02:30]}  cxd5 {[%clk 0:02:55]} 11. Qb3 {[%clk 0:02:30]}  e6 {[%clk 0:02:53]} 12. Bd2 {[%clk 0:02:30]}  b6 {[%clk 0:02:51]} 13. Rfc1 {[%clk 0:02:15]}  Bd7 {[%clk 0:02:51]} 14. Nc3 {[%clk 0:01:40]}  Qb8 {[%clk 0:02:40]} 15. Bf1 {[%clk 0:01:33]}  Rc8 {[%clk 0:02:32]} 16. Nb5 {[%clk 0:01:10]}  Bf8 {[%clk 0:02:28]} 17. a3 {[%clk 0:01:05]}  Qb7 {[%clk 0:02:27]} 18. Bd3 {[%clk 0:00:59]}  Rxc1+ {[%clk 0:02:24]} 19. Rxc1 {[%clk 0:00:59]}  Rc8 {[%clk 0:02:25]} 20. Rxc8 {[%clk 0:00:38]}  Qxc8 {[%clk 0:02:26]} 21. h4 {[%clk 0:00:38]}  h6 {[%clk 0:02:19]} 22. Nc3 {[%clk 0:00:27]}  Qb7 {[%clk 0:02:14]} 23. e4 {[%clk 0:00:27]}  Nc7 {[%clk 0:02:11]} 24. Bf4 {[%clk 0:00:20]}  dxe4 {[%clk 0:02:06]} 25. Nxe4 {[%clk 0:00:10]}  Nd5 {[%clk 0:02:07]} 26. Be5 {[%clk 0:00:10]}  Bg7 {[%clk 0:02:01]} 27. Bc4 {[%clk 0:00:09]}  Nf4 {[%clk 0:01:55]} 28. Qe3 {[%clk 0:00:04]}  Nd5 {[%clk 0:01:41]} 29. Qf3 {[%clk 0:00:02]}  f5 {[%clk 0:01:31]} 30. Nd6 {[%clk 0:00:01]}  Qc6 {[%clk 0:01:30]} 31. Bxd5 {[%clk 0:00:01]}  exd5 {[%clk 0:01:25]} 32. Qf4 {[%clk 0:00:02]}  Bf8 {[%clk 0:01:23]} 33. Kg2 {[%clk 0:00:01]}  a4 {[%clk 0:01:20]} 0-1


[Site "https://www.chess.com"]

[Event "Titled Tuesday Blitz April 12 Late 2022"]
[White "Kazakouski, Valery"]
[Black "Papp, Levente"]
[WhiteFideId "13507443"]
[BlackFideId "751243"]
[WhiteElo "2524"]
[BlackElo "2308"]
[Result "0-1"]
[Round "03"]
[TimeControl "180+1"]
[Date "2022.04.12"]
[WhiteClock "0:02:42"]
[BlackClock "0:02:24"]

1. d4 {[%clk 0:02:58]}  e6 {[%clk 0:02:59]} 2. c4 {[%clk 0:02:57]}  d5 {[%clk 0:02:59]} 3. Nf3 {[%clk 0:02:56]}  Nf6 {[%clk 0:02:59]} 4. g3 {[%clk 0:02:55]}  Bb4+ {[%clk 0:02:58]} 5. Bd2 {[%clk 0:02:54]}  a5 {[%clk 0:02:58]} 6. Bg2 {[%clk 0:02:53]}  O-O {[%clk 0:02:59]} 7. O-O {[%clk 0:02:53]}  dxc4 {[%clk 0:02:59]} 8. a3 {[%clk 0:02:53]}  Bxd2 {[%clk 0:02:58]} 9. Nbxd2 {[%clk 0:02:54]}  b5 {[%clk 0:02:52]} 10. b3 {[%clk 0:02:55]}  cxb3 {[%clk 0:02:37]} 11. Qxb3 {[%clk 0:02:56]}  c6 {[%clk 0:02:34]} 12. Qb2 {[%clk 0:02:55]}  Nbd7 {[%clk 0:02:30]} 13. Rfc1 {[%clk 0:02:52]}  Qb6 {[%clk 0:02:24]} 14. Nc4 {[%clk 0:02:42]}  bxc4 {[%clk 0:02:24]} 0-1


[Site "https://www.chess.com"]

[Event "Titled Tuesday Blitz April 12 Late 2022"]
[White "Kobalia, Mikhail"]
[Black "Plazuelo Pascual, Juan"]
[WhiteFideId "4119150"]
[BlackFideId "32059566"]
[WhiteElo "2667"]
[BlackElo "2359"]
[Result "1-0"]
[Round "03"]
[TimeControl "180+1"]
[Date "2022.04.12"]
[WhiteClock "0:00:07"]
[BlackClock "0:00:02"]

1. e4 {[%clk 0:02:57]}  c5 {[%clk 0:02:59]} 2. Nf3 {[%clk 0:02:56]}  Nc6 {[%clk 0:03:00]} 3. Bb5 {[%clk 0:02:54]}  d6 {[%clk 0:03:00]} 4. O-O {[%clk 0:02:53]}  Bd7 {[%clk 0:02:58]} 5. Re1 {[%clk 0:02:50]}  Nf6 {[%clk 0:02:58]} 6. c3 {[%clk 0:02:50]}  a6 {[%clk 0:02:58]} 7. Bf1 {[%clk 0:02:50]}  Bg4 {[%clk 0:02:58]} 8. h3 {[%clk 0:02:50]}  Bxf3 {[%clk 0:02:58]} 9. Qxf3 {[%clk 0:02:49]}  g6 {[%clk 0:02:58]} 10. d3 {[%clk 0:02:45]}  Bg7 {[%clk 0:02:58]} 11. Be3 {[%clk 0:02:45]}  O-O {[%clk 0:02:53]} 12. Nd2 {[%clk 0:02:45]}  Nd7 {[%clk 0:02:53]} 13. Qd1 {[%clk 0:02:44]}  b5 {[%clk 0:02:53]} 14. Nf3 {[%clk 0:02:44]}  b4 {[%clk 0:02:51]} 15. Qa4 {[%clk 0:02:44]}  Qc7 {[%clk 0:02:42]} 16. d4 {[%clk 0:02:42]}  Nb6 {[%clk 0:02:35]} 17. Qd1 {[%clk 0:02:40]}  Rfd8 {[%clk 0:02:22]} 18. Rc1 {[%clk 0:02:38]}  bxc3 {[%clk 0:02:21]} 19. bxc3 {[%clk 0:02:37]}  Na5 {[%clk 0:02:13]} 20. Nd2 {[%clk 0:02:27]}  Rdc8 {[%clk 0:01:29]} 21. d5 {[%clk 0:02:26]}  c4 {[%clk 0:01:14]} 22. Nf3 {[%clk 0:02:22]}  Nd7 {[%clk 0:01:04]} 23. Nd4 {[%clk 0:02:19]}  Nc5 {[%clk 0:01:03]} 24. Qc2 {[%clk 0:02:17]}  Rab8 {[%clk 0:00:53]} 25. Rb1 {[%clk 0:02:16]}  Rxb1 {[%clk 0:00:51]} 26. Rxb1 {[%clk 0:02:15]}  Rb8 {[%clk 0:00:51]} 27. f3 {[%clk 0:02:08]}  Rxb1 {[%clk 0:00:46]} 28. Qxb1 {[%clk 0:02:07]}  Qb7 {[%clk 0:00:47]} 29. Qb4 {[%clk 0:02:05]}  Qc7 {[%clk 0:00:34]} 30. Bxc4 {[%clk 0:01:54]}  Nxe4 {[%clk 0:00:30]} 31. Nc6 {[%clk 0:01:18]}  Bxc3 {[%clk 0:00:20]} 32. Qa4 {[%clk 0:01:04]}  Nc5 {[%clk 0:00:20]} 33. Bxc5 {[%clk 0:01:00]}  dxc5 {[%clk 0:00:21]} 34. Bxa6 {[%clk 0:00:59]}  Qg3 {[%clk 0:00:15]} 35. Qe4 {[%clk 0:00:43]}  Nxc6 {[%clk 0:00:05]} 36. dxc6 {[%clk 0:00:44]}  Bd4+ {[%clk 0:00:05]} 37. Kh1 {[%clk 0:00:39]}  Qd6 {[%clk 0:00:02]} 38. Bd3 {[%clk 0:00:24]}  f5 {[%clk 0:00:01]} 39. Bc4+ {[%clk 0:00:24]}  Kg7 {[%clk 0:00:02]} 40. Qe6 {[%clk 0:00:24]}  Qxe6 {[%clk 0:00:02]} 41. Bxe6 {[%clk 0:00:25]}  Be5 {[%clk 0:00:03]} 42. a4 {[%clk 0:00:23]}  Bc7 {[%clk 0:00:04]} 43. Kg1 {[%clk 0:00:21]}  Kf6 {[%clk 0:00:05]} 44. Bg8 {[%clk 0:00:20]}  h6 {[%clk 0:00:05]} 45. Kf2 {[%clk 0:00:20]}  Ke5 {[%clk 0:00:05]} 46. Ke3 {[%clk 0:00:18]}  Kd6 {[%clk 0:00:06]} 47. Bh7 {[%clk 0:00:16]}  Kxc6 {[%clk 0:00:06]} 48. Bxg6 {[%clk 0:00:16]}  e6 {[%clk 0:00:06]} 49. Kd3 {[%clk 0:00:15]}  Kd5 {[%clk 0:00:06]} 50. Bf7 {[%clk 0:00:13]}  c4+ {[%clk 0:00:06]} 51. Kc2 {[%clk 0:00:13]}  Ba5 {[%clk 0:00:06]} 52. g4 {[%clk 0:00:13]}  fxg4 {[%clk 0:00:05]} 53. fxg4 {[%clk 0:00:13]}  Ke5 {[%clk 0:00:05]} 54. Bg8 {[%clk 0:00:11]}  Kf6 {[%clk 0:00:05]} 55. h4 {[%clk 0:00:11]}  Bb4 {[%clk 0:00:04]} 56. Bh7 {[%clk 0:00:09]}  Ke5 {[%clk 0:00:02]} 57. Bg8 {[%clk 0:00:07]}  c3 {[%clk 0:00:02]} 58. Bh7 {[%clk 0:00:07]}  Ba5 {[%clk 0:00:03]} 59. Bg8 {[%clk 0:00:06]}  Kf6 {[%clk 0:00:03]} 60. Kd3 {[%clk 0:00:05]}  e5 {[%clk 0:00:02]} 61. Bh7 {[%clk 0:00:05]}  Ke6 {[%clk 0:00:02]} 62. Be4 {[%clk 0:00:05]}  Kd6 {[%clk 0:00:02]} 63. Kc4 {[%clk 0:00:05]}  Kc7 {[%clk 0:00:02]} 64. g5 {[%clk 0:00:05]}  hxg5 {[%clk 0:00:01]} 65. hxg5 {[%clk 0:00:06]}  Kd6 {[%clk 0:00:01]} 66. g6 {[%clk 0:00:06]}  Ke7 {[%clk 0:00:01]} 67. Kb5 {[%clk 0:00:06]}  Bd8 {[%clk 0:00:02]} 68. a5 {[%clk 0:00:06]}  Bxa5 {[%clk 0:00:02]} 69. Kxa5 {[%clk 0:00:07]}  Kf6 {[%clk 0:00:02]} 70. Kb4 {[%clk 0:00:07]} 1-0


[Site "https://www.chess.com"]

[Event "Titled Tuesday Blitz April 12 Late 2022"]
[White "Koelle, Tobias"]
[Black "Lossi C., Cyrano Jose"]
[WhiteFideId "16207378"]
[BlackFideId "7301600"]
[WhiteElo "2541"]
[BlackElo "1811"]
[Result "1-0"]
[Round "03"]
[TimeControl "180+1"]
[Date "2022.04.13"]
[WhiteClock "0:01:13"]
[BlackClock "0:00:08"]

1. d4 {[%clk 0:02:57]}  d5 {[%clk 0:02:59]} 2. c4 {[%clk 0:02:56]}  c6 {[%clk 0:02:59]} 3. cxd5 {[%clk 0:02:55]}  cxd5 {[%clk 0:02:59]} 4. Bg5 {[%clk 0:02:56]}  Nc6 {[%clk 0:02:55]} 5. Nc3 {[%clk 0:02:55]}  Bf5 {[%clk 0:02:54]} 6. e4 {[%clk 0:02:54]}  dxe4 {[%clk 0:02:47]} 7. d5 {[%clk 0:02:55]}  Ne5 {[%clk 0:02:29]} 8. Qa4+ {[%clk 0:02:54]}  Bd7 {[%clk 0:02:00]} 9. Qxe4 {[%clk 0:02:53]}  f6 {[%clk 0:01:40]} 10. Bf4 {[%clk 0:02:31]}  Ng6 {[%clk 0:01:26]} 11. Bg3 {[%clk 0:02:30]}  Qb6 {[%clk 0:00:52]} 12. Nge2 {[%clk 0:02:12]}  e5 {[%clk 0:00:35]} 13. dxe6 {[%clk 0:02:09]}  Bxe6 {[%clk 0:00:27]} 14. Nd5 {[%clk 0:02:04]}  Qa5+ {[%clk 0:00:22]} 15. Nec3 {[%clk 0:02:04]}  Kf7 {[%clk 0:00:20]} 16. Nc7 {[%clk 0:02:02]}  Qf5 {[%clk 0:00:14]} 17. Qxf5 {[%clk 0:01:56]}  Bxf5 {[%clk 0:00:15]} 18. Bc4+ {[%clk 0:01:56]}  Ke7 {[%clk 0:00:14]} 19. N3d5+ {[%clk 0:01:47]}  Kd7 {[%clk 0:00:14]} 20. O-O-O {[%clk 0:01:43]}  Rc8 {[%clk 0:00:13]} 21. Bb5+ {[%clk 0:01:28]}  Kd8 {[%clk 0:00:11]} 22. Rhe1 {[%clk 0:01:20]}  N8e7 {[%clk 0:00:08]} 23. Nxe7+ {[%clk 0:01:13]} 1-0


[Site "https://www.chess.com"]

[Event "Titled Tuesday Blitz April 12 Late 2022"]
[White "Koutlas, Nikolaos"]
[Black "Goryachkina, Aleksandra"]
[WhiteFideId "25827138"]
[BlackFideId "4147103"]
[WhiteElo "2461"]
[BlackElo "2645"]
[Result "0-1"]
[Round "03"]
[TimeControl "180+1"]
[Date "2022.04.13"]
[WhiteClock "0:00:02"]
[BlackClock "0:00:06"]

1. c4 {[%clk 0:02:59]}  Nf6 {[%clk 0:02:58]} 2. Nc3 {[%clk 0:02:59]}  c5 {[%clk 0:02:58]} 3. g3 {[%clk 0:02:57]}  Nc6 {[%clk 0:02:48]} 4. Bg2 {[%clk 0:02:54]}  g6 {[%clk 0:02:48]} 5. e4 {[%clk 0:02:52]}  Bg7 {[%clk 0:02:48]} 6. Nge2 {[%clk 0:02:52]}  O-O {[%clk 0:02:48]} 7. O-O {[%clk 0:02:52]}  d6 {[%clk 0:02:42]} 8. d3 {[%clk 0:02:48]}  a6 {[%clk 0:02:41]} 9. h3 {[%clk 0:02:43]}  Rb8 {[%clk 0:02:39]} 10. a4 {[%clk 0:02:43]}  Bd7 {[%clk 0:02:35]} 11. f4 {[%clk 0:02:41]}  Nd4 {[%clk 0:02:02]} 12. Nxd4 {[%clk 0:02:37]}  cxd4 {[%clk 0:02:03]} 13. Ne2 {[%clk 0:02:36]}  Ne8 {[%clk 0:01:59]} 14. a5 {[%clk 0:02:28]}  f5 {[%clk 0:01:58]} 15. exf5 {[%clk 0:01:46]}  gxf5 {[%clk 0:01:56]} 16. Bf3 {[%clk 0:01:30]}  e5 {[%clk 0:01:39]} 17. fxe5 {[%clk 0:01:10]}  dxe5 {[%clk 0:01:39]} 18. Bd5+ {[%clk 0:01:04]}  Kh8 {[%clk 0:01:37]} 19. g4 {[%clk 0:00:33]}  Qh4 {[%clk 0:01:35]} 20. gxf5 {[%clk 0:00:25]}  Bxf5 {[%clk 0:01:29]} 21. Bg2 {[%clk 0:00:20]}  Nc7 {[%clk 0:01:06]} 22. Bd2 {[%clk 0:00:20]}  Ne6 {[%clk 0:01:03]} 23. Be1 {[%clk 0:00:19]}  Qh6 {[%clk 0:01:00]} 24. Kh2 {[%clk 0:00:14]}  Nc5 {[%clk 0:00:41]} 25. Ra3 {[%clk 0:00:12]}  e4 {[%clk 0:00:36]} 26. Bb4 {[%clk 0:00:09]}  Qd6+ {[%clk 0:00:31]} 27. Kh1 {[%clk 0:00:08]}  exd3 {[%clk 0:00:31]} 28. Nf4 {[%clk 0:00:04]}  Be4 {[%clk 0:00:16]} 29. Bxc5 {[%clk 0:00:04]}  Bxg2+ {[%clk 0:00:15]} 30. Kxg2 {[%clk 0:00:04]}  Qxc5 {[%clk 0:00:15]} 31. Qxd3 {[%clk 0:00:05]}  Be5 {[%clk 0:00:06]} 32. Ne6 {[%clk 0:00:04]}  Qc6+ {[%clk 0:00:06]} 33. Qe4 {[%clk 0:00:02]}  Qxe4+ {[%clk 0:00:06]} 0-1


[Site "https://www.chess.com"]

[Event "Titled Tuesday Blitz April 12 Late 2022"]
[White "Kovanova, Baira"]
[Black "Ward, Ieuan C"]
[WhiteFideId "4164083"]
[BlackFideId "406627"]
[WhiteElo "2190"]
[BlackElo "2280"]
[Result "1-0"]
[Round "03"]
[TimeControl "180+1"]
[Date "2022.04.13"]
[WhiteClock "0:00:38"]
[BlackClock "0:00:08"]

1. e4 {[%clk 0:02:47]}  c5 {[%clk 0:02:59]} 2. Nf3 {[%clk 0:02:47]}  d6 {[%clk 0:02:59]} 3. d4 {[%clk 0:02:47]}  cxd4 {[%clk 0:03:00]} 4. Nxd4 {[%clk 0:02:47]}  Nf6 {[%clk 0:03:01]} 5. Nc3 {[%clk 0:02:47]}  a6 {[%clk 0:03:01]} 6. Be3 {[%clk 0:02:47]}  e5 {[%clk 0:03:01]} 7. Nf3 {[%clk 0:02:48]}  Be7 {[%clk 0:03:00]} 8. Bc4 {[%clk 0:02:48]}  O-O {[%clk 0:02:58]} 9. O-O {[%clk 0:02:48]}  Be6 {[%clk 0:02:56]} 10. Bb3 {[%clk 0:02:47]}  Nc6 {[%clk 0:02:54]} 11. Qe2 {[%clk 0:02:47]}  Bxb3 {[%clk 0:02:46]} 12. cxb3 {[%clk 0:02:44]}  d5 {[%clk 0:02:46]} 13. exd5 {[%clk 0:02:20]}  Nxd5 {[%clk 0:02:45]} 14. Rad1 {[%clk 0:02:11]}  Nxc3 {[%clk 0:02:45]} 15. bxc3 {[%clk 0:02:11]}  Qa5 {[%clk 0:02:44]} 16. c4 {[%clk 0:02:10]}  Rad8 {[%clk 0:02:41]} 17. h3 {[%clk 0:01:47]}  Bc5 {[%clk 0:02:34]} 18. Rd5 {[%clk 0:01:33]}  Rxd5 {[%clk 0:02:25]} 19. cxd5 {[%clk 0:01:33]}  Nd4 {[%clk 0:02:14]} 20. Bxd4 {[%clk 0:01:27]}  Bxd4 {[%clk 0:02:09]} 21. Nxd4 {[%clk 0:01:22]}  exd4 {[%clk 0:02:09]} 22. Qc4 {[%clk 0:01:23]}  Rd8 {[%clk 0:02:02]} 23. Qxd4 {[%clk 0:01:20]}  Qxd5 {[%clk 0:01:59]} 24. Qb6 {[%clk 0:01:15]}  g6 {[%clk 0:01:48]} 25. a4 {[%clk 0:01:14]}  Rd6 {[%clk 0:01:44]} 26. Qb4 {[%clk 0:01:11]}  a5 {[%clk 0:01:36]} 27. Qc3 {[%clk 0:01:09]}  Rb6 {[%clk 0:01:31]} 28. Re1 {[%clk 0:01:06]}  Qc6 {[%clk 0:01:10]} 29. Qxa5 {[%clk 0:00:59]}  Rxb3 {[%clk 0:01:04]} 30. Qd8+ {[%clk 0:00:54]}  Kg7 {[%clk 0:01:02]} 31. Re8 {[%clk 0:00:50]}  Rb1+ {[%clk 0:00:52]} 32. Kh2 {[%clk 0:00:50]}  Qc4 {[%clk 0:00:13]} 33. Rg8+ {[%clk 0:00:39]}  Kh6 {[%clk 0:00:13]} 34. Qd2+ {[%clk 0:00:38]}  Kh5 {[%clk 0:00:08]} 35. g4+ {[%clk 0:00:38]} 1-0


[Site "https://www.chess.com"]

[Event "Titled Tuesday Blitz April 12 Late 2022"]
[White "Koziorowicz, Michal"]
[Black "Mickiewicz, Piotr"]
[WhiteFideId "21809194"]
[BlackFideId "1114891"]
[WhiteElo "2641"]
[BlackElo "2458"]
[Result "0-1"]
[Round "03"]
[TimeControl "180+1"]
[Date "2022.04.13"]
[WhiteClock "0:00:18"]
[BlackClock "0:00:16"]

1. e4 {[%clk 0:03:00]}  c5 {[%clk 0:02:59]} 2. Nf3 {[%clk 0:03:01]}  e6 {[%clk 0:02:59]} 3. g3 {[%clk 0:02:57]}  Nc6 {[%clk 0:02:57]} 4. Bg2 {[%clk 0:02:57]}  d6 {[%clk 0:02:56]} 5. O-O {[%clk 0:02:56]}  Nf6 {[%clk 0:02:56]} 6. Nc3 {[%clk 0:02:55]}  Be7 {[%clk 0:02:55]} 7. d4 {[%clk 0:02:55]}  cxd4 {[%clk 0:02:55]} 8. Nxd4 {[%clk 0:02:56]}  Bd7 {[%clk 0:02:54]} 9. Be3 {[%clk 0:02:52]}  O-O {[%clk 0:02:51]} 10. f4 {[%clk 0:02:50]}  a6 {[%clk 0:02:42]} 11. Kh1 {[%clk 0:02:45]}  Rc8 {[%clk 0:02:38]} 12. g4 {[%clk 0:02:42]}  Nxd4 {[%clk 0:02:36]} 13. Bxd4 {[%clk 0:02:40]}  Bc6 {[%clk 0:02:36]} 14. g5 {[%clk 0:02:39]}  Nd7 {[%clk 0:02:35]} 15. Qh5 {[%clk 0:02:37]}  e5 {[%clk 0:02:33]} 16. Be3 {[%clk 0:02:11]}  g6 {[%clk 0:02:30]} 17. Qh6 {[%clk 0:02:09]}  exf4 {[%clk 0:02:27]} 18. Bxf4 {[%clk 0:02:10]}  Ne5 {[%clk 0:02:26]} 19. Rad1 {[%clk 0:01:47]}  Qc7 {[%clk 0:01:44]} 20. Bxe5 {[%clk 0:01:45]}  dxe5 {[%clk 0:01:43]} 21. Rd3 {[%clk 0:01:46]}  f6 {[%clk 0:01:21]} 22. Rh3 {[%clk 0:01:45]}  Rf7 {[%clk 0:01:20]} 23. gxf6 {[%clk 0:01:45]}  Bxf6 {[%clk 0:01:16]} 24. Rhf3 {[%clk 0:01:45]}  Bg7 {[%clk 0:01:12]} 25. Qh3 {[%clk 0:01:39]}  Rxf3 {[%clk 0:01:06]} 26. Rxf3 {[%clk 0:01:40]}  Qd7 {[%clk 0:01:02]} 27. Nd5 {[%clk 0:01:34]}  Re8 {[%clk 0:00:48]} 28. c4 {[%clk 0:01:26]}  Qd6 {[%clk 0:00:35]} 29. b4 {[%clk 0:01:25]}  Rf8 {[%clk 0:00:30]} 30. c5 {[%clk 0:01:19]}  Rxf3 {[%clk 0:00:21]} 31. Bxf3 {[%clk 0:01:20]}  Qd7 {[%clk 0:00:17]} 32. Bg4 {[%clk 0:01:12]}  Qd8 {[%clk 0:00:17]} 33. Be6+ {[%clk 0:01:12]}  Kh8 {[%clk 0:00:17]} 34. Qg3 {[%clk 0:01:04]}  Bb5 {[%clk 0:00:16]} 35. Kg2 {[%clk 0:00:59]}  Bc6 {[%clk 0:00:16]} 36. Qg4 {[%clk 0:00:52]}  Qf8 {[%clk 0:00:13]} 37. Qf3 {[%clk 0:00:52]}  Qxf3+ {[%clk 0:00:12]} 38. Kxf3 {[%clk 0:00:53]}  h6 {[%clk 0:00:12]} 39. Ne7 {[%clk 0:00:53]}  Kh7 {[%clk 0:00:12]} 40. Nxc6 {[%clk 0:00:49]}  bxc6 {[%clk 0:00:13]} 41. Bc8 {[%clk 0:00:50]}  a5 {[%clk 0:00:11]} 42. bxa5 {[%clk 0:00:51]}  Bf8 {[%clk 0:00:11]} 43. Bd7 {[%clk 0:00:51]}  Bxc5 {[%clk 0:00:12]} 44. Bxc6 {[%clk 0:00:51]}  Ba7 {[%clk 0:00:12]} 45. Ke2 {[%clk 0:00:51]}  h5 {[%clk 0:00:12]} 46. Kd3 {[%clk 0:00:51]}  g5 {[%clk 0:00:13]} 47. Bd7 {[%clk 0:00:49]}  g4 {[%clk 0:00:13]} 48. Kc4 {[%clk 0:00:49]}  Kh6 {[%clk 0:00:14]} 49. Kb5 {[%clk 0:00:45]}  Bd4 {[%clk 0:00:13]} 50. Ka6 {[%clk 0:00:42]}  Kg5 {[%clk 0:00:13]} 51. Kb7 {[%clk 0:00:42]}  Kf4 {[%clk 0:00:13]} 52. Bf5 {[%clk 0:00:43]}  h4 {[%clk 0:00:13]} 53. a6 {[%clk 0:00:42]}  g3 {[%clk 0:00:13]} 54. hxg3+ {[%clk 0:00:43]}  hxg3 {[%clk 0:00:13]} 55. Bh3 {[%clk 0:00:43]}  Kxe4 {[%clk 0:00:14]} 56. a7 {[%clk 0:00:40]}  Bxa7 {[%clk 0:00:14]} 57. Kxa7 {[%clk 0:00:41]}  Kd3 {[%clk 0:00:14]} 58. Kb6 {[%clk 0:00:40]}  e4 {[%clk 0:00:14]} 59. a4 {[%clk 0:00:38]}  e3 {[%clk 0:00:14]} 60. a5 {[%clk 0:00:18]}  e2 {[%clk 0:00:14]} 61. a6 {[%clk 0:00:19]}  e1=Q {[%clk 0:00:14]} 62. a7 {[%clk 0:00:20]}  Qb4+ {[%clk 0:00:14]} 63. Kc7 {[%clk 0:00:20]}  Qc5+ {[%clk 0:00:14]} 64. Kb8 {[%clk 0:00:20]}  Qb6+ {[%clk 0:00:14]} 65. Ka8 {[%clk 0:00:20]}  Kd4 {[%clk 0:00:14]} 66. Bg2 {[%clk 0:00:20]}  Ke5 {[%clk 0:00:14]} 67. Bf3 {[%clk 0:00:18]}  Kd6 {[%clk 0:00:15]} 68. Bb7 {[%clk 0:00:18]}  Kc7 {[%clk 0:00:15]} 69. Bc8 {[%clk 0:00:19]}  Qc6+ {[%clk 0:00:15]} 70. Bb7 {[%clk 0:00:18]}  Qxb7# {[%clk 0:00:16]} 0-1


[Site "https://www.chess.com"]

[Event "Titled Tuesday Blitz April 12 Late 2022"]
[White "Levin, Anthony"]
[Black "Olcayoz, Alper"]
[WhiteFideId "30940680"]
[BlackFideId "6300405"]
[WhiteElo "2080"]
[BlackElo "2255"]
[Result "0-1"]
[Round "03"]
[TimeControl "180+1"]
[Date "2022.04.13"]
[WhiteClock "0:00:03"]
[BlackClock "0:00:05"]

1. d4 {[%clk 0:02:57]}  Nf6 {[%clk 0:02:57]} 2. c4 {[%clk 0:02:56]}  e5 {[%clk 0:02:57]} 3. dxe5 {[%clk 0:02:56]}  Ne4 {[%clk 0:02:57]} 4. a3 {[%clk 0:02:53]}  d6 {[%clk 0:02:37]} 5. Qc2 {[%clk 0:02:36]}  d5 {[%clk 0:02:32]} 6. Nf3 {[%clk 0:02:02]}  Nc6 {[%clk 0:02:27]} 7. cxd5 {[%clk 0:01:49]}  Qxd5 {[%clk 0:02:22]} 8. Nc3 {[%clk 0:01:50]}  Nxc3 {[%clk 0:02:22]} 9. Qxc3 {[%clk 0:01:51]}  Bg4 {[%clk 0:02:18]} 10. Bf4 {[%clk 0:01:49]}  O-O-O {[%clk 0:02:11]} 11. Rc1 {[%clk 0:01:40]}  Be7 {[%clk 0:01:36]} 12. h3 {[%clk 0:01:40]}  Bh5 {[%clk 0:01:21]} 13. g4 {[%clk 0:01:39]}  Bg6 {[%clk 0:01:21]} 14. Bg2 {[%clk 0:01:40]}  Be4 {[%clk 0:01:20]} 15. O-O {[%clk 0:01:35]}  h5 {[%clk 0:01:18]} 16. g5 {[%clk 0:01:24]}  Kb8 {[%clk 0:01:11]} 17. b4 {[%clk 0:01:10]}  a6 {[%clk 0:01:10]} 18. h4 {[%clk 0:00:43]}  Rhe8 {[%clk 0:00:55]} 19. Rfd1 {[%clk 0:00:14]}  Qe6 {[%clk 0:00:45]} 20. Kh2 {[%clk 0:00:11]}  Qf5 {[%clk 0:00:39]} 21. Bg3 {[%clk 0:00:11]}  f6 {[%clk 0:00:20]} 22. Nd4 {[%clk 0:00:11]}  Nxd4 {[%clk 0:00:14]} 23. Rxd4 {[%clk 0:00:11]}  Bxg2 {[%clk 0:00:11]} 24. Qxc7+ {[%clk 0:00:08]}  Ka8 {[%clk 0:00:12]} 25. Kxg2 {[%clk 0:00:07]}  Rxd4 {[%clk 0:00:09]} 26. exf6 {[%clk 0:00:06]}  gxf6 {[%clk 0:00:09]} 27. e3 {[%clk 0:00:05]}  Rg4 {[%clk 0:00:08]} 28. Qb6 {[%clk 0:00:03]}  Qe4+ {[%clk 0:00:06]} 29. Kh2 {[%clk 0:00:03]}  Rxh4+ {[%clk 0:00:06]} 30. Kg1 {[%clk 0:00:03]}  Rh1# {[%clk 0:00:05]} 0-1


[Site "https://www.chess.com"]